bitfinex/quotes_ETHUSD_20220212
["timestamp","ask_amount","ask_price","bid_price","bid_amount"]
[1644650881612,0.4708,2926.0,2925.7,0.05228029]
[1644650881851,0.4708,2926.0,2925.7,0.04535744]
[1644650882046,0.1708,2926.0,2925.7,0.04535744]
[1644650882246,0.1708,2926.0,2925.7,0.05228029]
[1644650882846,0.16169461,2926.0,2925.7,0.05228029]
[1644650883046,0.16169461,2926.0,2925.7,0.04535744]
[1644650883249,0.16169461,2926.0,2925.7,0.05228029]
[1644650883450,0.99965899,2926.2,2925.7,0.05228029]
[1644650884052,1.59965899,2926.2,2925.7,0.05228029]
[1644650884252,1.59217863,2926.2,2925.7,0.04535744]
[1644650884452,1.59972147,2926.2,2925.7,0.05248797]
[1644650885352,2.55575573,2926.2,2925.7,0.04535744]
[1644650885597,1.56331473,2926.2,2925.7,0.05248797]
[1644650885798,1.0,2926.1,2925.7,0.05248797]
[1644650885998,0.1708,2926.0,2925.7,0.05248797]
[1644650886201,0.03566579,2925.9,2925.7,0.00713053]
[1644650886600,0.03566579,2925.9,2925.6,0.03628315]
[1644650886798,0.20646579,2925.9,2925.7,0.00713053]
[1644650886999,0.03566579,2925.9,2925.7,0.00713053]
[1644650887502,0.03566579,2925.9,2925.7,0.00633053]
[1644650887503,0.1708,2925.8,2925.7,0.00633053]
[1644650887699,0.1708,2925.8,2925.6,0.03628315]
[1644650887899,1.1708,2925.8,2925.6,0.03628315]
[1644650888304,1.92191179,2925.8,2925.6,0.03628315]
[1644650888504,5.41,2925.7,2925.3,0.09455061]
[1644650888703,0.1708,2925.6,2925.3,0.09455061]
[1644650888902,0.41,2925.5,2925.3,0.09455061]
[1644650889105,0.1708,2925.4,2925.3,0.09455061]
[1644650889564,0.85508,2925.5,2925.3,0.09455061]
[1644650890150,1.15508,2925.5,2925.3,0.09455061]
[1644650890450,0.3,2925.4,2925.3,0.09455061]
[1644650891653,1.15508,2925.5,2925.3,0.09455061]
[1644650891853,0.20636956,2925.7,2925.3,0.09455061]
[1644650892052,0.03556956,2925.7,2925.3,0.09455061]
[1644650892253,0.33556956,2925.7,2925.3,0.09455061]
[1644650892551,0.03556956,2925.7,2925.3,0.09455061]
[1644650892951,0.03556956,2925.7,2925.4,0.00809048]
[1644650893900,0.03556956,2925.7,2925.3,0.09455061]
[1644650894102,0.03556956,2925.7,2925.4,0.00809043]
[1644650895003,0.03556956,2925.7,2925.3,0.09455061]
[1644650895402,0.03556956,2925.7,2925.4,0.00809043]
[1644650896205,0.05349563,2925.7,2925.3,0.09455061]
[1644650896402,0.0376427,2925.7,2925.3,0.09455061]
[1644650896602,0.0376427,2925.7,2925.4,0.00799819]
[1644650897451,0.0376427,2925.7,2925.3,0.09455061]
[1644650897452,1.03069503,2925.6,2925.3,0.09455061]
[1644650897746,1.63069503,2925.6,2925.4,0.00799819]
[1644650898550,2.63069503,2925.6,2925.4,0.00799819]
[1644650898756,0.4708,2925.6,2925.3,0.09455061]
[1644650898951,0.8926827,2925.7,2925.3,0.09455061]
[1644650898952,0.0376427,2925.7,2925.3,0.09455061]
[1644650900252,0.0376427,2925.7,2925.4,0.00800379]
[1644650901099,0.0376427,2925.7,2925.3,0.09455061]
[1644650901100,0.01874584,2925.5,2925.3,0.09455061]
[1644650901299,0.01874584,2925.5,2925.4,0.00800374]
[1644650902302,0.01874584,2925.5,2925.3,0.09455061]
[1644650902702,0.01874584,2925.5,2925.3,0.10255444]
[1644650903303,0.1708,2925.4,2925.3,0.10255444]
[1644650903502,0.1708,2925.4,2925.3,0.09455061]
[1644650903902,0.1708,2925.4,2925.3,0.10255407]
[1644650904357,0.1708,2925.4,2923.9,4.9308]
[1644650904358,2.65,2925.3,2924.1,3.5]
[1644650904550,0.8553,2925.0,2923.8,3.5]
[1644650904748,0.1708,2924.9,2923.8,3.5]
[1644650904947,0.1708,2924.9,2923.3,0.13819996]
[1644650905147,0.1708,2924.9,2923.4,1.45568694]
[1644650905347,0.1708,2924.9,2923.5,3.5]
[1644650905548,0.78257711,2924.2,2923.5,3.5]
[1644650905750,0.78257711,2924.2,2923.3,0.13819996]
[1644650905751,0.78257711,2924.2,2923.6,1.45568205]
[1644650905950,0.78257711,2924.2,2923.3,0.13819996]
[1644650906158,2.221,2924.1,2923.1,0.4208]
[1644650906355,2.221,2924.1,2922.3,4.9638]
[1644650906356,10.721,2924.1,2922.3,4.9638]
[1644650906554,10.721,2924.1,2922.3,1.4004]
[1644650906555,0.85565,2923.9,2922.3,1.4004]
[1644650906754,1.71161,2923.7,2922.3,1.4004]
[1644650906954,0.8114,2922.7,2922.3,1.1504]
[1644650907156,0.8114,2922.7,2922.1,1.1655]
[1644650907157,0.3,2923.5,2922.0,3.0069]
[1644650907360,0.171,2923.4,2921.9,0.88065795]
[1644650907553,1.3,2923.5,2922.0,0.171]
[1644650907554,0.6,2923.5,2922.0,0.171]
[1644650907754,0.3,2923.5,2922.0,0.171]
[1644650908101,7.56402321,2923.4,2922.0,0.171]
[1644650908305,0.87298408,2923.1,2922.4,0.74207256]
[1644650908604,0.87298408,2923.1,2922.6,0.0086131]
[1644650909608,0.87298408,2923.1,2922.2,7.46]
[1644650909609,1.47298408,2923.1,2922.2,7.46]
[1644650909809,0.171,2923.0,2921.9,0.001]
[1644650910005,3.32291405,2923.1,2922.7,0.00861296]
[1644650910204,1.0,2923.0,2922.7,0.00861296]
[1644650910804,1.0,2923.0,2921.7,0.171]
[1644650911006,0.68856642,2922.3,2921.7,0.171]
[1644650911210,0.68856642,2922.3,2921.7,0.172]
[1644650911410,0.85591,2922.7,2921.7,0.171]
[1644650911607,0.73819997,2923.1,2921.7,0.171]
[1644650911859,0.73819997,2923.1,2921.7,0.472]
[1644650911860,0.13819997,2923.1,2921.7,0.472]
[1644650912053,0.13819997,2923.1,2921.7,0.172]
[1644650912249,0.13819997,2923.1,2922.3,0.00861336]
[1644650912454,0.8569198,2923.3,2922.5,0.84718175]
[1644650912650,0.8569198,2923.3,2922.3,0.00861336]
[1644650913256,0.8569198,2923.3,2921.9,0.001]
[1644650913455,0.8569198,2923.3,2921.9,0.3]
[1644650913656,0.8569198,2923.3,2922.7,0.00770445]
[1644650914358,0.04294967,2923.4,2922.5,0.77646701]
[1644650914556,0.04294967,2923.4,2922.9,0.00770393]
[1644650915599,0.04294967,2923.4,2922.6,7.46]
[1644650915800,0.04294967,2923.4,2922.7,1.0]
[1644650916002,0.04294967,2923.4,2923.0,0.00770353]
[1644650916202,0.04127655,2923.2,2923.0,0.00770353]
[1644650916806,0.04127655,2923.2,2922.7,1.0]
[1644650917004,0.04127655,2923.2,2923.0,0.00708001]
[1644650917406,0.04127655,2923.2,2923.0,0.74660769]
[1644650917906,0.04127655,2923.2,2923.0,0.00708001]
[1644650918107,0.04127655,2923.2,2922.6,7.46]
[1644650918307,0.04127655,2923.2,2923.0,0.00708001]
[1644650918506,0.02194526,2923.4,2923.2,0.0747914]
[1644650919549,0.02194526,2923.4,2923.2,0.08187093]
[1644650920449,0.02194526,2923.4,2923.2,0.0747914]
[1644650920651,0.02194526,2923.4,2923.2,0.08194469]
[1644650921450,0.43819997,2923.7,2923.2,0.08194469]
[1644650921651,0.171,2923.6,2923.2,0.0747914]
[1644650921852,0.171,2923.6,2923.2,0.08194469]
[1644650922854,0.171,2923.6,2923.2,0.0747914]
[1644650923097,0.171,2923.6,2923.3,0.00715304]
[1644650924105,0.171,2923.6,2923.2,0.0747914]
[1644650924303,0.171,2923.6,2923.3,0.00714165]
[1644650924505,0.43819997,2923.7,2923.3,0.00714165]
[1644650925205,0.43819997,2923.7,2923.2,0.0747914]
[1644650925605,0.43819997,2923.7,2923.4,0.00714153]
[1644650926405,0.43819997,2923.7,2923.2,0.0747914]
[1644650926605,0.04323274,2923.5,2923.4,0.02007021]
[1644650927657,0.04323274,2923.5,2923.4,0.0129288]
[1644650931098,0.04323274,2923.5,2923.4,0.65062805]
[1644650932001,0.04323274,2923.5,2923.4,0.63769925]
[1644650932402,0.04323274,2923.5,2923.4,4.16750886]
[1644650932801,0.04323274,2923.5,2923.4,5.16750886]
[1644650933207,0.04323274,2923.5,2923.4,5.33850886]
[1644650936965,0.85523,2925.1,2923.5,3.3]
[1644650937165,4.852,2925.2,2923.6,4.89410582]
[1644650937366,5.64010564,2925.6,2923.6,6.49410582]
[1644650937367,0.1708,2925.1,2923.6,6.49410582]
[1644650937567,0.1708,2925.5,2923.6,6.49410582]
[1644650937767,1.4708,2925.5,2923.6,6.49410582]
[1644650938208,0.71308154,2924.9,2923.6,6.49410582]
[1644650938808,0.71308154,2924.9,2924.4,0.00820225]
[1644650939808,0.71308154,2924.9,2924.1,0.75236165]
[1644650940009,0.71308154,2924.9,2924.5,0.00820216]
[1644650940809,0.71308154,2924.9,2924.1,0.75236165]
[1644650941215,0.71308154,2924.9,2924.6,0.00798563]
[1644650941415,0.1708,2924.8,2924.6,0.00798563]
[1644650942050,0.1708,2924.8,2924.1,0.75236165]
[1644650942250,0.71308154,2924.9,2924.1,0.75236165]
[1644650942450,0.71308154,2924.9,2924.6,0.00798563]
[1644650943355,0.71308154,2924.9,2924.1,0.75236165]
[1644650943555,0.71308154,2924.9,2924.6,0.00798559]
[1644650944556,0.85517,2925.2,2924.1,0.75236165]
[1644650944755,1.15517,2925.2,2924.6,0.00798559]
[1644650945359,1.45517,2925.2,2924.6,0.00798559]
[1644650945598,0.86132113,2925.1,2924.6,0.00798559]
[1644650945799,0.86132113,2925.1,2924.1,0.92316165]
[1644650945998,0.86132113,2925.1,2924.8,0.008]
[1644650947005,0.02257264,2924.9,2924.8,0.01545271]
[1644650947205,0.02257264,2924.9,2924.8,0.02345267]
[1644650948007,0.02257264,2924.9,2924.8,0.01545271]
[1644650951955,0.02257264,2924.9,2924.7,0.00645378]
[1644650951957,0.04389736,2924.9,2924.7,0.00645378]
[1644650952155,0.1708,2924.8,2924.7,0.00645378]
[1644650952354,0.6638,2924.8,2924.7,0.00645378]
[1644650952956,0.6638,2924.8,2924.6,0.01549397]
[1644650953408,1.6638,2924.8,2924.6,0.01549397]
[1644650954007,3.6305788,2924.7,2924.6,0.01549397]
[1644650954212,4.2943788,2924.7,2924.6,0.01549397]
[1644650954509,1.6638,2924.7,2924.6,0.00216954]
[1644650954706,0.6638,2924.7,2924.6,0.00216954]
[1644650955108,4.13461347,2924.7,2924.6,0.00216954]
[1644650955310,5.13461347,2924.7,2924.6,9.397e-05]
[1644650956607,1.6638,2924.7,2924.6,9.397e-05]
[1644650956870,0.98933188,2924.7,2924.5,0.00691482]
[1644650957064,1.81911392,2924.6,2924.5,0.00691482]
[1644650957264,3.3,2924.5,2922.3,1.7108421]
[1644650957470,3.3,2924.5,2921.8,0.86539921]
[1644650957471,5.01261124,2923.7,2921.8,7.2159]
[1644650957670,5.01261124,2923.7,2921.9,0.171]
[1644650957671,5.0,2923.3,2921.9,0.171]
[1644650957868,1.664,2923.2,2921.6,0.001]
[1644650958071,6.16,2923.1,2921.6,0.001]
[1644650958267,6.16,2923.1,2921.7,0.78042928]
[1644650958268,1.51988,2923.0,2921.7,0.78042928]
[1644650958469,1.34888,2923.0,2921.8,0.171]
[1644650958668,0.493,2923.0,2921.8,0.171]
[1644650958868,0.493,2923.0,2921.9,1.45620812]
[1644650959067,0.493,2923.0,2922.0,0.171]
[1644650959374,0.78830441,2922.8,2922.0,0.171]
[1644650959572,0.78830441,2922.8,2921.7,0.78042928]
[1644650959771,1.08830441,2922.8,2921.7,0.78042928]
[1644650960611,0.78830441,2922.8,2921.7,0.78042928]
[1644650961602,0.78830441,2922.8,2922.1,0.0086088]
[1644650962004,0.78830441,2922.8,2922.2,0.80574817]
[1644650962202,0.664,2923.0,2922.1,0.0086088]
[1644650962403,0.05384362,2923.1,2922.1,0.0086088]
[1644650962602,0.05384362,2923.1,2921.8,0.8556583]
[1644650962802,0.05384362,2923.1,2922.4,0.00860853]
[1644650963005,0.493,2923.0,2922.4,0.00860853]
[1644650963209,0.66284705,2922.9,2922.4,0.00860853]
[1644650963407,0.493,2922.8,2922.4,0.00860853]
[1644650963608,0.664,2922.8,2922.4,0.00860853]
[1644650963809,0.664,2922.8,2921.7,0.86353165]
[1644650964009,0.493,2922.8,2922.5,0.00860849]
[1644650965056,0.493,2922.8,2922.2,0.72768962]
[1644650965275,0.493,2922.8,2922.5,0.00860844]
[1644650966159,0.793,2922.8,2921.6,0.25]
[1644650966357,0.793,2922.8,2922.5,0.00860844]
[1644650966358,0.493,2922.8,2922.5,0.00860844]
[1644650966558,0.793,2922.8,2922.5,0.00860844]
[1644650967162,0.493,2922.8,2922.5,0.00860844]
[1644650967358,0.493,2922.8,2921.9,0.7491581]
[1644650967759,0.493,2922.8,2922.5,0.00860844]
[1644650968209,0.793,2922.8,2922.5,0.00860844]
[1644650968709,0.793,2922.8,2921.9,0.7491581]
[1644650968909,0.793,2922.8,2922.5,0.00860844]
[1644650969511,0.493,2922.8,2922.5,0.00860844]
[1644650969714,0.793,2922.8,2921.9,0.7491581]
[1644650970113,0.793,2922.8,2922.5,0.00860844]
[1644650971013,0.793,2922.8,2921.7,0.17384934]
[1644650971214,0.793,2922.8,2922.5,0.00860844]
[1644650972152,0.03900735,2922.7,2921.8,0.00284934]
[1644650972361,0.03900735,2922.7,2922.5,0.00860844]
[1644650972362,0.493,2922.6,2922.5,0.00860844]
[1644650972557,0.664,2922.6,2922.5,0.00860844]
[1644650972757,6.264,2922.6,2922.5,0.00860844]
[1644650972957,1.264,2922.6,2922.5,0.00860844]
[1644650973159,2.264,2922.6,2922.5,0.00860844]
[1644650973359,1.264,2922.6,2922.5,0.00860844]
[1644650973556,2.264,2922.6,2921.8,0.00284934]
[1644650973756,2.264,2922.6,2921.8,0.03729068]
[1644650973757,0.97774681,2922.4,2921.8,0.03729068]
[1644650974357,1.27774681,2922.4,2921.8,0.03729068]
[1644650974558,0.493,2922.6,2921.8,0.00284934]
[1644650974761,0.1711,2923.2,2922.0,5.00860893]
[1644650974965,0.171,2923.5,2922.5,0.01260635]
[1644650975160,1.71118,2924.1,2922.6,0.171]
[1644650975612,1.71118,2924.1,2922.7,0.72859853]
[1644650975807,0.171,2924.0,2922.7,0.72859853]
[1644650976208,0.171,2924.0,2923.2,0.00258404]
[1644650977010,0.05716989,2922.6,2922.4,3.671]
[1644650977211,0.05716989,2922.6,2922.4,0.171]
[1644650978613,0.05716989,2922.6,2922.4,0.17791246]
[1644650978914,0.05716989,2922.6,2922.2,0.00284934]
[1644650978915,3.443,2922.5,2922.2,0.00284934]
[1644650979114,3.443,2922.5,2920.8,0.86335428]
[1644650979115,5.0,2922.3,2921.2,0.25]
[1644650979363,0.3008,2922.0,2921.2,0.00288285]
[1644650979659,0.0008,2922.0,2921.3,0.00288285]
[1644650979858,0.0008,2922.0,2920.9,0.00288285]
[1644650980062,0.69039039,2921.4,2920.6,0.17398285]
[1644650980260,0.69039039,2921.4,2920.3,6.7125]
[1644650980261,0.69039039,2921.4,2920.8,0.00288285]
[1644650980462,0.69039039,2921.4,2920.4,1.17398285]
[1644650980660,0.99039039,2921.4,2920.4,0.00288285]
[1644650981059,0.1711,2921.3,2920.4,0.00288285]
[1644650981260,0.85844498,2920.8,2920.4,0.00288285]
[1644650981661,0.85844498,2920.8,2920.2,0.00288285]
[1644650982262,0.1711,2921.1,2920.2,0.00288285]
[1644650983318,0.74368576,2920.8,2920.2,0.00288285]
[1644650983518,0.74368576,2920.8,2920.5,0.00814011]
[1644650984319,0.74368576,2920.8,2920.2,0.00288285]
[1644650984520,0.74368576,2920.8,2919.9,0.17498285]
[1644650984721,0.74368576,2920.8,2920.5,0.00850894]
[1644650985619,0.74368576,2920.8,2920.1,0.00288285]
[1644650985819,0.74368576,2920.8,2920.5,0.00850894]
[1644650986423,1.34368576,2920.8,2920.5,0.00850894]
[1644650986850,1.34368576,2920.8,2920.1,0.00288285]
[1644650987054,2.34368576,2920.8,2920.5,0.00850894]
[1644650987960,2.34368576,2920.8,2920.1,0.00288285]
[1644650988358,1.34368576,2920.8,2920.5,0.00850894]
[1644650988556,2.34368576,2920.8,2920.5,0.00850894]
[1644650988757,0.85651,2920.7,2920.5,0.00850894]
[1644650989158,0.3,2920.6,2919.8,0.00288285]
[1644650989558,0.3,2920.6,2920.5,0.00850909]
[1644650989959,0.85651,2920.7,2920.5,0.00850909]
[1644650990360,0.74368576,2920.8,2919.8,0.17398285]
[1644650990615,0.74368576,2920.8,2919.8,0.17498285]
[1644650990802,0.1711,2920.9,2919.8,0.16653339]
[1644650991003,0.1711,2920.9,2919.8,0.16753339]
[1644650991204,0.1711,2920.9,2919.8,0.16653339]
[1644650992203,0.85862492,2920.5,2919.8,0.16653339]
[1644650992404,0.03713672,2920.7,2920.6,0.69568385]
[1644650992803,0.89362672,2920.7,2920.6,0.69568385]
[1644650993213,1.66472672,2920.7,2920.6,0.69568385]
[1644650993606,2.29564956,2920.7,2920.6,0.69568385]
[1644650993808,3.29564956,2920.7,2920.6,0.69568385]
[1644650994008,2.29564956,2920.7,2920.6,0.69568385]
[1644650994652,3.29564956,2920.7,2920.6,0.69568385]
[1644650996053,6.87397592,2920.7,2920.6,0.69568385]
[1644650996453,2.43915956,2920.7,2920.6,0.69568385]
[1644650996653,5.98281984,2920.7,2920.6,0.69568385]
[1644650996854,3.0,2920.6,2919.9,0.00840445]
[1644650997156,0.85674,2920.4,2919.9,0.00840445]
[1644650997354,0.87643468,2920.3,2919.9,0.00840445]
[1644650997559,1.36943468,2920.3,2919.9,0.00840445]
[1644650997958,1.36943468,2920.3,2919.6,0.0029014]
[1644650997959,0.8958479,2919.7,2919.6,0.0029014]
[1644650998207,0.8958479,2919.7,2919.3,0.0029014]
[1644650998410,0.8958479,2919.7,2919.2,0.1711]
[1644650998805,0.8958479,2919.7,2919.3,0.04035806]
[1644650999206,0.8958479,2919.7,2919.3,0.04830409]
[1644651000208,0.8958479,2919.7,2919.3,0.04035806]
[1644651000407,0.8958479,2919.7,2919.4,0.00748124]
[1644651001410,0.8958479,2919.7,2919.3,0.04035806]
[1644651001609,0.8958479,2919.7,2919.4,0.00225146]
[1644651002452,0.8958479,2919.7,2919.3,0.04035806]
[1644651002951,0.8958479,2919.7,2919.4,0.00748111]
[1644651003756,0.8958479,2919.7,2919.3,0.04035806]
[1644651003757,3.60968309,2919.6,2919.3,0.04035806]
[1644651003959,3.78078309,2919.6,2919.3,0.04035806]
[1644651004156,0.493,2919.5,2919.4,0.00787468]
[1644651004355,0.793,2919.5,2919.4,0.00787468]
[1644651004556,4.47338461,2919.5,2919.4,0.00787468]
[1644651004757,4.77338461,2919.5,2919.4,0.00787468]
[1644651004958,4.77338461,2919.5,2918.6,0.0029014]
[1644651004959,1.71395,2919.3,2918.6,0.0029014]
[1644651005159,1.71395,2919.3,2918.9,0.03150379]
[1644651005160,0.493,2919.2,2918.9,0.03150379]
[1644651005357,0.9641,2919.2,2918.9,0.03150379]
[1644651005802,1.9641,2919.2,2918.9,0.03150379]
[1644651006003,0.9641,2919.2,2918.9,0.03150379]
[1644651006205,0.87401251,2918.6,2918.2,0.0039014]
[1644651006603,1.17401251,2918.6,2918.0,0.0029014]
[1644651007403,1.17401251,2918.6,2918.0,1.4608636]
[1644651007603,1.17401251,2918.6,2918.2,0.00204273]
[1644651007604,0.3,2918.6,2918.2,0.00204273]
[1644651008004,0.4713,2918.7,2918.2,0.00204273]
[1644651008208,0.1713,2918.7,2918.2,0.00204273]
[1644651008510,0.1713,2918.7,2918.1,0.0029014]
[1644651008909,0.4713,2918.7,2918.3,0.00204262]
[1644651009109,0.1713,2918.7,2918.3,0.00204262]
[1644651009350,0.05289562,2918.5,2918.3,0.00204262]
[1644651009754,0.05289562,2918.5,2918.1,0.0029014]
[1644651009954,0.05289562,2918.5,2918.3,0.00678917]
[1644651010956,0.05289562,2918.5,2918.1,0.0029014]
[1644651010957,0.09986275,2918.5,2918.1,0.0029014]
[1644651011158,0.09986275,2918.5,2917.9,0.6465071]
[1644651011362,0.09986275,2918.5,2918.3,0.00746563]
[1644651012160,0.09986275,2918.5,2918.0,0.0029014]
[1644651012359,3.54034755,2919.0,2918.9,0.15044853]
[1644651012560,1.38301436,2919.0,2918.9,0.15044853]
[1644651012761,1.98301436,2919.0,2918.9,0.15044853]
[1644651012959,1.68301436,2919.0,2918.9,0.15044853]
[1644651013207,1.98301436,2919.0,2918.9,0.15044853]
[1644651016410,1.38301436,2919.0,2918.9,0.15044853]
[1644651016714,0.493,2919.0,2918.9,0.15044853]
[1644651017158,0.5154194,2919.2,2918.9,0.15044853]
[1644651017358,0.5154194,2919.2,2919.0,1.0]
[1644651017560,0.5154194,2919.2,2919.1,0.001]
[1644651017760,0.5154194,2919.2,2919.1,0.67079065]
[1644651018362,0.5154194,2919.2,2919.1,0.001]
[1644651022308,1.24674353,2919.2,2919.1,0.001]
[1644651023311,0.5154194,2919.2,2919.1,0.001]
[1644651023812,1.02789,2919.8,2919.1,0.001]
[1644651024015,1.72222575,2919.9,2919.1,1.46153274]
[1644651024016,0.00859575,2919.9,2919.1,1.46153274]
[1644651024212,0.86003022,2920.5,2919.9,0.78081738]
[1644651024457,0.86003022,2920.5,2920.0,0.0029014]
[1644651024653,0.86003022,2920.5,2919.4,0.1721]
[1644651024854,0.00859637,2919.9,2919.5,0.0029014]
[1644651025555,0.86003022,2920.5,2919.6,0.75990724]
[1644651025756,0.0085969,2919.9,2919.7,0.0029014]
[1644651025956,0.0085969,2919.9,2919.6,1.05990724]
[1644651026157,0.0085969,2919.9,2919.7,3.46360232]
[1644651026358,0.0085969,2919.9,2919.8,1.0]
[1644651026555,0.1711,2921.0,2919.8,4.64318181]
[1644651026755,0.1711,2921.0,2919.9,0.0029014]
[1644651026958,0.79337703,2920.8,2920.2,0.89600977]
[1644651027156,0.79337703,2920.8,2920.3,0.0029014]
[1644651027357,0.79337703,2920.8,2920.2,0.89600977]
[1644651027756,0.1711,2921.0,2920.3,3.36396574]
[1644651027957,0.1711,2921.3,2920.3,3.5]
[1644651028219,0.00859628,2920.6,2920.2,0.89891117]
[1644651028616,0.00859628,2920.6,2920.3,1.45714248]
[1644651028817,0.00859628,2920.6,2920.3,7.8278]
[1644651029019,0.86491212,2921.0,2920.3,7.8278]
[1644651029218,0.86491212,2921.0,2920.3,4.0284]
[1644651029522,0.00794616,2920.6,2920.3,1.0]
[1644651030019,0.00794616,2920.6,2920.2,1.19891117]
[1644651030216,1.1711,2921.9,2920.2,7.84992758]
[1644651030417,1.1711,2921.9,2920.3,1.0]
[1644651030617,0.00794616,2920.6,2920.4,3.49351851]
[1644651030820,0.00794616,2920.6,2920.3,1.0]
[1644651031019,0.00794616,2920.6,2920.4,3.35255367]
[1644651031218,0.00794616,2920.6,2920.3,1.0]
[1644651031419,0.03903757,2920.9,2920.3,1.0]
[1644651031855,0.00794611,2920.6,2920.3,1.0]
[1644651032255,0.00794611,2920.6,2920.3,6.3]
[1644651032455,1.02727,2921.8,2920.9,2.9]
[1644651032456,0.1711,2921.8,2920.9,2.9]
[1644651032657,0.0008,2922.0,2920.9,2.9]
[1644651032658,0.1711,2921.9,2920.9,2.9]
[1644651032857,0.0008,2922.0,2921.0,1.0]
[1644651033058,0.0008,2922.0,2921.0,1.1711]
[1644651033461,0.81933941,2921.9,2921.3,0.80611068]
[1644651034062,0.00548591,2921.7,2921.3,0.80611068]
[1644651035063,0.81933941,2921.9,2921.3,0.80611068]
[1644651035263,0.00548591,2921.6,2921.3,0.80611068]
[1644651036209,0.81933941,2921.9,2921.3,0.80611068]
[1644651036407,0.0008,2922.0,2921.3,0.80611068]
[1644651036607,0.00800031,2921.6,2921.3,0.80611068]
[1644651037609,0.0008,2922.0,2921.3,0.80611068]
[1644651037811,0.00807556,2921.6,2921.3,0.80611068]
[1644651038817,0.0008,2922.0,2921.3,0.80611068]
[1644651039018,0.00807556,2921.6,2921.3,0.80611068]
[1644651039961,0.0008,2922.0,2921.3,0.80611068]
[1644651040164,0.00807556,2921.6,2921.3,0.80611068]
[1644651040763,0.00807556,2921.6,2921.4,0.03381152]
[1644651041163,0.0008,2922.0,2921.4,0.03381152]
[1644651041562,0.00798606,2921.6,2921.4,0.03381152]
[1644651042364,0.0008,2922.0,2921.4,0.03381152]
[1644651042562,0.00798606,2921.6,2921.4,0.03381152]
[1644651043412,0.0008,2922.0,2921.4,0.03381152]
[1644651043811,0.00798606,2921.6,2921.4,0.03381152]
[1644651044812,0.0008,2922.0,2921.4,0.03381152]
[1644651045016,0.00798606,2921.6,2921.4,0.03381152]
[1644651046012,0.0008,2922.0,2921.3,0.80611068]
[1644651046215,0.00799206,2921.6,2921.3,0.80611068]
[1644651046857,0.00799206,2921.6,2921.3,1.10611068]
[1644651047056,0.0008,2922.0,2921.3,0.80611068]
[1644651047457,0.0079921,2921.6,2921.3,0.80611068]
[1644651048264,0.0008,2922.0,2921.3,0.80611068]
[1644651048662,0.0079921,2921.6,2921.3,0.80611068]
[1644651049363,0.0079921,2921.6,2921.3,1.66192278]
[1644651049564,0.0008,2922.0,2921.4,3.41811497]
[1644651049764,0.00547674,2921.6,2921.4,3.58921497]
[1644651049964,0.00547674,2921.6,2921.5,1.0]
[1644651050174,7.674e-05,2921.6,2921.5,5.65142305]
[1644651050617,0.0008,2922.0,2921.6,3.3]
[1644651050808,0.0008,2922.0,2921.7,4.82080166]
[1644651051010,0.0008,2922.0,2921.9,0.82681215]
[1644651051208,0.0008,2922.0,2921.9,4.6934567]
[1644651051408,0.0008,2922.0,2921.9,5.9934567]
[1644651051611,0.0008,2922.0,2921.9,5.6934567]
[1644651052011,0.0008,2922.0,2921.9,5.9934567]
[1644651054659,0.0008,2922.0,2921.9,5.6934567]
[1644651055059,0.0008,2922.0,2921.9,5.9934567]
[1644651056081,0.0008,2922.0,2921.9,6.02731417]
[1644651059412,0.1711,2923.5,2921.9,6.02731417]
[1644651059413,0.00860581,2922.1,2921.9,6.02731417]
[1644651059615,5.81e-06,2922.1,2922.0,4.84250465]
[1644651059812,5.81e-06,2922.1,2922.0,5.14250465]
[1644651060314,0.171,2923.7,2922.0,5.14250465]
[1644651060515,0.80708176,2923.5,2922.9,0.7990792]
[1644651061115,0.80708176,2923.5,2922.5,1.0]
[1644651061413,0.80708176,2923.5,2922.5,1.6]
[1644651061615,0.80708176,2923.5,2922.5,0.3]
[1644651061859,0.0086049,2923.1,2922.5,1.0]
[1644651062159,0.0086049,2923.1,2922.5,1.73841517]
[1644651062460,0.0086049,2923.1,2922.5,0.73841517]
[1644651062658,0.80040667,2922.9,2922.3,1.0]
[1644651062859,0.80040667,2922.9,2922.1,0.171]
[1644651063065,0.171,2922.8,2922.1,0.171]
[1644651064164,0.00860538,2922.6,2922.1,0.171]
[1644651064464,0.74212243,2922.4,2921.9,0.7461398]
[1644651065465,0.00860564,2922.3,2921.9,0.7461398]
[1644651065912,0.00860564,2922.3,2921.9,0.71228233]
[1644651066311,0.74212243,2922.4,2921.9,0.71228233]
[1644651066512,0.74212243,2922.4,2921.6,3.0385]
[1644651066714,0.00860568,2922.2,2921.7,0.0084738]
[1644651067513,0.00860568,2922.2,2921.3,0.25]
[1644651067514,0.493,2922.2,2921.3,0.25]
[1644651067714,0.83083396,2921.7,2921.2,4.74584252]
[1644651067915,0.83083396,2921.7,2921.2,0.86604328]
[1644651068322,0.83083396,2921.7,2921.2,0.03390076]
[1644651068719,0.83083396,2921.7,2921.1,0.1711]
[1644651069118,0.83083396,2921.7,2921.3,0.00847496]
[1644651069364,0.1711,2922.1,2921.3,0.00847496]
[1644651069566,0.50160433,2922.2,2921.3,0.00847496]
[1644651069965,0.493,2922.2,2921.1,0.1711]
[1644651070366,0.1711,2922.1,2921.6,0.00847409]
[1644651070567,0.73175023,2922.0,2921.6,0.00847409]
[1644651070767,0.1711,2921.9,2921.6,0.00847409]
[1644651070969,0.73175023,2922.0,2921.6,0.00847409]
[1644651071168,0.73175023,2922.0,2921.0,1.001]
[1644651071367,0.73175023,2922.0,2921.6,0.00847409]
[1644651072367,0.73175023,2922.0,2921.4,0.69317884]
[1644651072769,0.73175023,2922.0,2921.7,0.00847394]
[1644651072968,1.03175023,2922.0,2921.7,0.00847394]
[1644651073215,0.73175023,2922.0,2921.7,0.00847394]
[1644651073416,1.23649892,2922.0,2921.7,0.00847394]
[1644651073617,1.23649892,2922.0,2921.0,1.001]
[1644651073814,1.23649892,2922.0,2921.7,0.0084738]
[1644651074819,1.23649892,2922.0,2921.0,1.001]
[1644651075018,1.23649892,2922.0,2921.7,0.0084738]
[1644651075417,1.83649892,2922.0,2921.7,0.0084738]
[1644651075817,1.83649892,2922.0,2921.7,0.05495532]
[1644651075818,1.23649892,2922.0,2921.7,0.05495532]
[1644651076016,1.23649892,2922.0,2921.7,0.04648152]
[1644651076320,1.23649892,2922.0,2921.7,0.05495532]
[1644651077161,1.23649892,2922.0,2921.7,0.04648152]
[1644651077562,0.50474869,2922.0,2921.7,0.05495532]